[Event "Titled Tuesday Blitz May 2 Early 2023"]
[White "Sarana, Alexey"]
[Black "Goltsev, Dmitry"]
[WhiteFideId "24133795"]
[BlackFideId "24176710"]
[WhiteElo "2714"]
[BlackElo "2336"]
[Result "1-0"]
[Round "04"]
[TimeControl "180+2"]
[Date "2023.05.02"]
[WhiteClock "0:00:27"]
[BlackClock "0:00:54"]

1. d4 {[%clk 0:02:51]}  Nf6 {[%clk 0:02:59]} 2. c4 {[%clk 0:02:52]}  e6 {[%clk 0:02:59]} 3. Nc3 {[%clk 0:02:53]}  b6 {[%clk 0:02:58]} 4. e4 {[%clk 0:02:52]}  d6 {[%clk 0:02:59]} 5. Bd3 {[%clk 0:02:51]}  Bb7 {[%clk 0:02:59]} 6. Nge2 {[%clk 0:02:50]}  e5 {[%clk 0:03:00]} 7. O-O {[%clk 0:02:49]}  Nbd7 {[%clk 0:03:00]} 8. f4 {[%clk 0:02:48]}  Be7 {[%clk 0:03:00]} 9. Kh1 {[%clk 0:02:44]}  a5 {[%clk 0:02:59]} 10. b3 {[%clk 0:02:43]}  O-O {[%clk 0:02:57]} 11. Bc2 {[%clk 0:02:42]}  Re8 {[%clk 0:02:57]} 12. Ng3 {[%clk 0:02:40]}  exd4 {[%clk 0:02:57]} 13. Qxd4 {[%clk 0:02:39]}  Nc5 {[%clk 0:02:57]} 14. Bb2 {[%clk 0:02:29]}  Ne6 {[%clk 0:02:38]} 15. Qd2 {[%clk 0:02:29]}  Nd7 {[%clk 0:02:33]} 16. Nd5 {[%clk 0:02:26]}  Bf8 {[%clk 0:02:31]} 17. Rad1 {[%clk 0:02:20]}  c6 {[%clk 0:02:30]} 18. Ne3 {[%clk 0:02:19]}  g6 {[%clk 0:02:27]} 19. e5 {[%clk 0:01:26]}  dxe5 {[%clk 0:02:23]} 20. Qxd7 {[%clk 0:01:21]}  Qxd7 {[%clk 0:02:18]} 21. Rxd7 {[%clk 0:01:22]}  Bc8 {[%clk 0:02:18]} 22. Rdd1 {[%clk 0:01:17]}  exf4 {[%clk 0:02:13]} 23. Ng4 {[%clk 0:01:17]}  Bg7 {[%clk 0:02:09]} 24. Bxg7 {[%clk 0:01:06]}  Kxg7 {[%clk 0:02:10]} 25. Ne4 {[%clk 0:01:06]}  f5 {[%clk 0:02:07]} 26. Nd6 {[%clk 0:01:05]}  Rd8 {[%clk 0:01:52]} 27. Ne5 {[%clk 0:01:02]}  c5 {[%clk 0:01:52]} 28. Nc6 {[%clk 0:00:57]}  Rd7 {[%clk 0:01:50]} 29. Rfe1 {[%clk 0:00:49]}  Kf6 {[%clk 0:01:31]} 30. h4 {[%clk 0:00:42]}  Bb7 {[%clk 0:01:25]} 31. Ne5 {[%clk 0:00:30]}  Re7 {[%clk 0:01:23]} 32. Nxb7 {[%clk 0:00:30]}  Rxb7 {[%clk 0:01:24]} 33. Rd6 {[%clk 0:00:30]}  Re8 {[%clk 0:01:21]} 34. Nc6 {[%clk 0:00:30]}  Rc7 {[%clk 0:01:11]} 35. Kh2 {[%clk 0:00:30]}  h6 {[%clk 0:01:11]} 36. h5 {[%clk 0:00:28]}  gxh5 {[%clk 0:00:54]} 37. Bd1 {[%clk 0:00:27]} 1-0


[Site "https://www.chess.com"]

[Event "Titled Tuesday Blitz May 2 Early 2023"]
[White "Kovalenko, Igor"]
[Black "Le, Tuan Minh"]
[WhiteFideId "14117908"]
[BlackFideId "12401153"]
[WhiteElo "2574"]
[BlackElo "2566"]
[Result "0-1"]
[Round "04"]
[TimeControl "180+2"]
[Date "2023.05.02"]
[WhiteClock "0:02:12"]
[BlackClock "0:01:09"]

1. c4 {[%clk 0:03:00]}  c6 {[%clk 0:02:59]} 2. Nf3 {[%clk 0:03:00]}  d5 {[%clk 0:02:58]} 3. e3 {[%clk 0:03:01]}  Nf6 {[%clk 0:02:59]} 4. Nc3 {[%clk 0:03:01]}  a6 {[%clk 0:02:59]} 5. b3 {[%clk 0:02:59]}  Bg4 {[%clk 0:02:59]} 6. h3 {[%clk 0:02:59]}  Bh5 {[%clk 0:03:00]} 7. Bb2 {[%clk 0:02:59]}  e6 {[%clk 0:03:00]} 8. Be2 {[%clk 0:02:59]}  Nbd7 {[%clk 0:03:00]} 9. d4 {[%clk 0:02:58]}  Bd6 {[%clk 0:03:00]} 10. Nd2 {[%clk 0:02:58]}  Bg6 {[%clk 0:03:00]} 11. O-O {[%clk 0:02:57]}  Qe7 {[%clk 0:02:59]} 12. c5 {[%clk 0:02:57]}  Bc7 {[%clk 0:02:59]} 13. f4 {[%clk 0:02:57]}  h6 {[%clk 0:02:49]} 14. b4 {[%clk 0:02:57]}  Bf5 {[%clk 0:02:33]} 15. Nf3 {[%clk 0:02:48]}  g5 {[%clk 0:02:29]} 16. Ne5 {[%clk 0:02:48]}  gxf4 {[%clk 0:02:20]} 17. exf4 {[%clk 0:02:49]}  Rg8 {[%clk 0:02:12]} 18. Kh2 {[%clk 0:02:46]}  Nxe5 {[%clk 0:02:06]} 19. fxe5 {[%clk 0:02:45]}  O-O-O {[%clk 0:01:55]} 20. Qe1 {[%clk 0:02:36]}  Ne4 {[%clk 0:01:44]} 21. Nxe4 {[%clk 0:02:35]}  dxe4 {[%clk 0:01:45]} 22. Kh1 {[%clk 0:02:29]}  f6 {[%clk 0:01:20]} 23. Qh4 {[%clk 0:02:27]}  Qg7 {[%clk 0:01:18]} 24. g4 {[%clk 0:02:19]}  fxe5 {[%clk 0:01:19]} 25. dxe5 {[%clk 0:02:18]}  Rd2 {[%clk 0:01:16]} 26. Rg1 {[%clk 0:02:12]}  Bg6 {[%clk 0:01:09]} 0-1


[Site "https://www.chess.com"]

[Event "Titled Tuesday Blitz May 2 Early 2023"]
[White "Sokolovsky, Yahli"]
[Black "Gupta, Abhijeet"]
[WhiteFideId "2820242"]
[BlackFideId "5010608"]
[WhiteElo "2316"]
[BlackElo "2528"]
[Result "0-1"]
[Round "04"]
[TimeControl "180+2"]
[Date "2023.05.02"]
[WhiteClock "0:00:01"]
[BlackClock "0:00:35"]

1. b3 {[%clk 0:03:00]}  Nf6 {[%clk 0:02:59]} 2. Bb2 {[%clk 0:03:01]}  g6 {[%clk 0:02:59]} 3. c4 {[%clk 0:03:01]}  Bg7 {[%clk 0:02:59]} 4. g3 {[%clk 0:03:02]}  O-O {[%clk 0:02:59]} 5. Bg2 {[%clk 0:03:03]}  d6 {[%clk 0:03:00]} 6. d4 {[%clk 0:03:03]}  Na6 {[%clk 0:02:58]} 7. Nf3 {[%clk 0:03:03]}  e5 {[%clk 0:02:56]} 8. dxe5 {[%clk 0:03:02]}  dxe5 {[%clk 0:02:57]} 9. O-O {[%clk 0:02:42]}  e4 {[%clk 0:02:53]} 10. Ng5 {[%clk 0:02:41]}  Bf5 {[%clk 0:02:50]} 11. Nd2 {[%clk 0:02:41]}  Re8 {[%clk 0:02:45]} 12. f3 {[%clk 0:01:54]}  e3 {[%clk 0:02:36]} 13. Nb1 {[%clk 0:01:46]}  h6 {[%clk 0:02:25]} 14. Nh3 {[%clk 0:01:39]}  g5 {[%clk 0:02:18]} 15. Nc3 {[%clk 0:01:33]}  c6 {[%clk 0:02:08]} 16. g4 {[%clk 0:01:15]}  Bh7 {[%clk 0:02:04]} 17. Qe1 {[%clk 0:00:45]}  Nb4 {[%clk 0:02:01]} 18. Rd1 {[%clk 0:00:38]}  Qc7 {[%clk 0:01:58]} 19. f4 {[%clk 0:00:33]}  Nxg4 {[%clk 0:01:53]} 20. Qg3 {[%clk 0:00:32]}  f5 {[%clk 0:01:48]} 21. fxg5 {[%clk 0:00:23]}  Be5 {[%clk 0:01:43]} 22. Qh4 {[%clk 0:00:12]}  Bxh2+ {[%clk 0:01:42]} 23. Kh1 {[%clk 0:00:12]}  Bg3 {[%clk 0:01:19]} 24. Qh5 {[%clk 0:00:12]}  Bh4 {[%clk 0:01:12]} 25. Nf4 {[%clk 0:00:06]}  Bxg5 {[%clk 0:01:12]} 26. Ncd5 {[%clk 0:00:01]}  cxd5 {[%clk 0:01:08]} 27. a3 {[%clk 0:00:02]}  Bxf4 {[%clk 0:01:02]} 28. axb4 {[%clk 0:00:02]}  Be5 {[%clk 0:01:00]} 29. Bxd5+ {[%clk 0:00:03]}  Kh8 {[%clk 0:01:00]} 30. Bc1 {[%clk 0:00:01]}  Bg7 {[%clk 0:00:57]} 31. Rf3 {[%clk 0:00:01]}  Nf2+ {[%clk 0:00:53]} 32. Rxf2 {[%clk 0:00:01]}  exf2 {[%clk 0:00:53]} 33. Rf1 {[%clk 0:00:02]}  Qg3 {[%clk 0:00:53]} 34. Bxh6 {[%clk 0:00:02]}  Re7 {[%clk 0:00:43]} 35. Bg5 {[%clk 0:00:02]}  Bd4 {[%clk 0:00:38]} 36. Qh2 {[%clk 0:00:01]}  Qxh2+ {[%clk 0:00:36]} 37. Kxh2 {[%clk 0:00:01]}  Rxe2 {[%clk 0:00:37]} 38. Kg2 {[%clk 0:00:01]}  Rg8 {[%clk 0:00:35]} 0-1


[Site "https://www.chess.com"]

[Event "Titled Tuesday Blitz May 2 Early 2023"]
[White "Bachmann, Axel"]
[Black "Dilanyan, Grigor"]
[WhiteFideId "3700488"]
[BlackFideId "13303570"]
[WhiteElo "2605"]
[BlackElo "2229"]
[Result "1-0"]
[Round "04"]
[TimeControl "180+2"]
[Date "2023.05.02"]
[WhiteClock "0:01:11"]
[BlackClock "0:00:18"]

1. e4 {[%clk 0:02:59]}  e5 {[%clk 0:02:58]} 2. Bc4 {[%clk 0:02:58]}  Nf6 {[%clk 0:02:55]} 3. d3 {[%clk 0:02:58]}  c6 {[%clk 0:02:56]} 4. Nf3 {[%clk 0:02:56]}  d5 {[%clk 0:02:55]} 5. Bb3 {[%clk 0:02:57]}  Bd6 {[%clk 0:02:44]} 6. Nc3 {[%clk 0:02:55]}  O-O {[%clk 0:02:38]} 7. Bg5 {[%clk 0:02:42]}  d4 {[%clk 0:02:06]} 8. Ne2 {[%clk 0:02:42]}  h6 {[%clk 0:02:03]} 9. Bd2 {[%clk 0:02:42]}  a5 {[%clk 0:02:01]} 10. a3 {[%clk 0:02:41]}  a4 {[%clk 0:02:00]} 11. Ba2 {[%clk 0:02:42]}  Bg4 {[%clk 0:01:57]} 12. Ng3 {[%clk 0:02:41]}  Nh5 {[%clk 0:01:45]} 13. Nxh5 {[%clk 0:02:11]}  Bxh5 {[%clk 0:01:45]} 14. g4 {[%clk 0:02:12]}  Bxg4 {[%clk 0:01:33]} 15. Rg1 {[%clk 0:02:12]}  h5 {[%clk 0:01:33]} 16. h3 {[%clk 0:01:49]}  Bxh3 {[%clk 0:01:24]} 17. Ng5 {[%clk 0:01:24]}  Bg4 {[%clk 0:01:24]} 18. Rxg4 {[%clk 0:01:24]}  hxg4 {[%clk 0:01:24]} 19. Qxg4 {[%clk 0:01:25]}  Qf6 {[%clk 0:01:18]} 20. O-O-O {[%clk 0:01:24]}  Qh6 {[%clk 0:00:20]} 21. Nxf7 {[%clk 0:01:15]}  Qxd2+ {[%clk 0:00:18]} 22. Kxd2 {[%clk 0:01:13]}  Rxf7 {[%clk 0:00:18]} 23. Qg6 {[%clk 0:01:11]} 1-0


[Site "https://www.chess.com"]

[Event "Titled Tuesday Blitz May 2 Early 2023"]
[White "Bernadskiy, Vitaliy"]
[Black "Karamsetty, Jeevan"]
[WhiteFideId "14100371"]
[BlackFideId "2025337"]
[WhiteElo "2488"]
[BlackElo "2111"]
[Result "1-0"]
[Round "04"]
[TimeControl "180+2"]
[Date "2023.05.02"]
[WhiteClock "0:00:38"]
[BlackClock "0:00:03"]

1. d4 {[%clk 0:03:00]}  g6 {[%clk 0:03:00]} 2. e4 {[%clk 0:03:00]}  d6 {[%clk 0:02:59]} 3. c4 {[%clk 0:03:00]}  Bg7 {[%clk 0:02:59]} 4. Nc3 {[%clk 0:03:01]}  e5 {[%clk 0:03:00]} 5. d5 {[%clk 0:03:01]}  a5 {[%clk 0:02:59]} 6. Nf3 {[%clk 0:02:56]}  Na6 {[%clk 0:02:56]} 7. Bg5 {[%clk 0:02:55]}  Ne7 {[%clk 0:02:41]} 8. Nd2 {[%clk 0:02:47]}  h6 {[%clk 0:02:28]} 9. Be3 {[%clk 0:02:46]}  f5 {[%clk 0:02:27]} 10. f3 {[%clk 0:02:46]}  f4 {[%clk 0:02:24]} 11. Bf2 {[%clk 0:02:45]}  g5 {[%clk 0:02:14]} 12. Be2 {[%clk 0:02:42]}  Ng6 {[%clk 0:02:09]} 13. a3 {[%clk 0:02:39]}  Bd7 {[%clk 0:02:00]} 14. Nb5 {[%clk 0:02:35]}  h5 {[%clk 0:01:50]} 15. h3 {[%clk 0:02:34]}  O-O {[%clk 0:01:47]} 16. Qc2 {[%clk 0:02:05]}  b6 {[%clk 0:01:46]} 17. b3 {[%clk 0:01:56]}  Qc8 {[%clk 0:01:36]} 18. O-O-O {[%clk 0:01:44]}  Nc5 {[%clk 0:01:24]} 19. Kb1 {[%clk 0:01:40]}  Rf7 {[%clk 0:01:17]} 20. Ka2 {[%clk 0:01:40]}  Bf8 {[%clk 0:01:14]} 21. Nb1 {[%clk 0:01:38]}  a4 {[%clk 0:01:03]} 22. b4 {[%clk 0:01:36]}  Nb3 {[%clk 0:01:03]} 23. N1c3 {[%clk 0:01:31]}  c6 {[%clk 0:00:51]} 24. dxc6 {[%clk 0:01:26]}  Bxc6 {[%clk 0:00:41]} 25. Nxd6 {[%clk 0:01:20]}  Bxd6 {[%clk 0:00:37]} 26. Rxd6 {[%clk 0:01:21]}  Kg7 {[%clk 0:00:20]} 27. Rhd1 {[%clk 0:01:19]}  Be8 {[%clk 0:00:12]} 28. Bxb6 {[%clk 0:01:17]}  Ra6 {[%clk 0:00:11]} 29. Rd8 {[%clk 0:01:10]}  Qe6 {[%clk 0:00:09]} 30. R1d6 {[%clk 0:01:08]}  Qe7 {[%clk 0:00:05]} 31. c5 {[%clk 0:00:57]}  Nd4 {[%clk 0:00:05]} 32. Qd1 {[%clk 0:00:47]}  Rxb6 {[%clk 0:00:03]} 33. cxb6 {[%clk 0:00:46]}  Qb7 {[%clk 0:00:02]} 34. Rxd4 {[%clk 0:00:44]}  exd4 {[%clk 0:00:03]} 35. Qxd4+ {[%clk 0:00:44]}  Kf8 {[%clk 0:00:02]} 36. Qd6+ {[%clk 0:00:44]}  Ne7 {[%clk 0:00:01]} 37. Qh6+ {[%clk 0:00:44]}  Rg7 {[%clk 0:00:01]} 38. Rxe8+ {[%clk 0:00:41]}  Kxe8 {[%clk 0:00:02]} 39. Qxg7 {[%clk 0:00:41]}  Qc8 {[%clk 0:00:03]} 40. Bb5+ {[%clk 0:00:38]} 1-0


[Site "https://www.chess.com"]

[Event "Titled Tuesday Blitz May 2 Early 2023"]
[White "Demchenko, Anton"]
[Black "Aaditya Dhingra"]
[WhiteFideId "4160258"]
[BlackFideId "25678191"]
[WhiteElo "2545"]
[BlackElo "2083"]
[Result "1-0"]
[Round "04"]
[TimeControl "180+2"]
[Date "2023.05.02"]
[WhiteClock "0:00:04"]
[BlackClock "0:00:14"]

1. e4 {[%clk 0:02:56]}  e5 {[%clk 0:02:30]} 2. Nf3 {[%clk 0:02:52]}  Nc6 {[%clk 0:02:30]} 3. Bc4 {[%clk 0:02:52]}  Nf6 {[%clk 0:02:29]} 4. d3 {[%clk 0:02:52]}  Be7 {[%clk 0:02:29]} 5. O-O {[%clk 0:02:47]}  O-O {[%clk 0:02:28]} 6. Re1 {[%clk 0:02:48]}  d6 {[%clk 0:02:28]} 7. a4 {[%clk 0:02:47]}  Na5 {[%clk 0:02:28]} 8. Ba2 {[%clk 0:02:48]}  c5 {[%clk 0:02:28]} 9. h3 {[%clk 0:02:44]}  Nc6 {[%clk 0:02:27]} 10. Na3 {[%clk 0:02:43]}  h6 {[%clk 0:02:26]} 11. c3 {[%clk 0:02:43]}  Be6 {[%clk 0:02:24]} 12. Bxe6 {[%clk 0:02:39]}  fxe6 {[%clk 0:02:25]} 13. Bd2 {[%clk 0:02:39]}  Qd7 {[%clk 0:02:23]} 14. Nc4 {[%clk 0:02:37]}  Kh7 {[%clk 0:02:17]} 15. b4 {[%clk 0:02:31]}  cxb4 {[%clk 0:02:11]} 16. cxb4 {[%clk 0:02:32]}  Rae8 {[%clk 0:01:47]} 17. b5 {[%clk 0:02:18]}  Nd8 {[%clk 0:01:45]} 18. Rb1 {[%clk 0:01:56]}  Nf7 {[%clk 0:01:43]} 19. Be3 {[%clk 0:01:57]}  Ra8 {[%clk 0:01:36]} 20. Qb3 {[%clk 0:01:48]}  Rfc8 {[%clk 0:01:05]} 21. Bd2 {[%clk 0:01:35]}  Kg8 {[%clk 0:01:02]} 22. d4 {[%clk 0:01:24]}  exd4 {[%clk 0:01:00]} 23. Nxd4 {[%clk 0:01:25]}  d5 {[%clk 0:00:49]} 24. Ne3 {[%clk 0:00:37]}  Nxe4 {[%clk 0:00:48]} 25. Rbd1 {[%clk 0:00:37]}  Nxd2 {[%clk 0:00:44]} 26. Rxd2 {[%clk 0:00:38]}  Ng5 {[%clk 0:00:43]} 27. f3 {[%clk 0:00:23]}  Bf6 {[%clk 0:00:41]} 28. Ng4 {[%clk 0:00:20]}  Bxd4+ {[%clk 0:00:40]} 29. Rxd4 {[%clk 0:00:20]}  Qd6 {[%clk 0:00:33]} 30. Qe3 {[%clk 0:00:21]}  Re8 {[%clk 0:00:31]} 31. Ne5 {[%clk 0:00:21]}  Rad8 {[%clk 0:00:30]} 32. h4 {[%clk 0:00:15]}  Nf7 {[%clk 0:00:30]} 33. Nxf7 {[%clk 0:00:16]}  Kxf7 {[%clk 0:00:30]} 34. Rf4+ {[%clk 0:00:17]}  Kg8 {[%clk 0:00:31]} 35. Rg4 {[%clk 0:00:17]}  e5 {[%clk 0:00:30]} 36. Qxa7 {[%clk 0:00:16]}  d4 {[%clk 0:00:30]} 37. Qxb7 {[%clk 0:00:16]}  Rd7 {[%clk 0:00:25]} 38. Qe4 {[%clk 0:00:17]}  d3 {[%clk 0:00:26]} 39. Rd1 {[%clk 0:00:17]}  d2 {[%clk 0:00:26]} 40. Rg6 {[%clk 0:00:08]}  Qd4+ {[%clk 0:00:24]} 41. Qxd4 {[%clk 0:00:08]}  Rxd4 {[%clk 0:00:20]} 42. Rc6 {[%clk 0:00:05]}  Ra8 {[%clk 0:00:18]} 43. Rc2 {[%clk 0:00:04]}  Raxa4 {[%clk 0:00:17]} 44. Rdxd2 {[%clk 0:00:02]}  Rdb4 {[%clk 0:00:17]} 45. Rb2 {[%clk 0:00:02]}  e4 {[%clk 0:00:15]} 46. fxe4 {[%clk 0:00:02]}  Rxe4 {[%clk 0:00:15]} 47. b6 {[%clk 0:00:03]}  Ra8 {[%clk 0:00:13]} 48. b7 {[%clk 0:00:03]}  Rb8 {[%clk 0:00:13]} 49. Rdc2 {[%clk 0:00:04]}  Ree8 {[%clk 0:00:14]} 50. Rc7 {[%clk 0:00:04]}  Rf8 {[%clk 0:00:14]} 51. Rb4 {[%clk 0:00:04]}  Rfe8 {[%clk 0:00:14]} 52. Rg4 {[%clk 0:00:04]} 1-0


[Site "https://www.chess.com"]

[Event "Titled Tuesday Blitz May 2 Early 2023"]
[White "Rakotomaharo, Fy Antenaina"]
[Black "Galchenko, Matvey"]
[WhiteFideId "13100050"]
[BlackFideId "24175480"]
[WhiteElo "2427"]
[BlackElo "2423"]
[Result "1-0"]
[Round "04"]
[TimeControl "180+2"]
[Date "2023.05.02"]
[WhiteClock "0:00:03"]
[BlackClock "0:00:03"]

1. Nf3 {[%clk 0:03:00]}  c5 {[%clk 0:02:54]} 2. g3 {[%clk 0:02:59]}  Nc6 {[%clk 0:02:54]} 3. Bg2 {[%clk 0:03:00]}  g6 {[%clk 0:02:55]} 4. O-O {[%clk 0:02:59]}  Bg7 {[%clk 0:02:55]} 5. c4 {[%clk 0:03:00]}  e6 {[%clk 0:02:55]} 6. Nc3 {[%clk 0:02:59]}  Nge7 {[%clk 0:02:54]} 7. d3 {[%clk 0:02:56]}  O-O {[%clk 0:02:53]} 8. a3 {[%clk 0:02:52]}  d5 {[%clk 0:02:52]} 9. Bd2 {[%clk 0:02:52]}  b6 {[%clk 0:02:50]} 10. Rb1 {[%clk 0:02:51]}  Bb7 {[%clk 0:02:46]} 11. b4 {[%clk 0:02:47]}  cxb4 {[%clk 0:02:42]} 12. axb4 {[%clk 0:02:48]}  Rc8 {[%clk 0:02:41]} 13. cxd5 {[%clk 0:02:31]}  exd5 {[%clk 0:02:38]} 14. Qb3 {[%clk 0:02:28]}  Re8 {[%clk 0:02:34]} 15. Rfc1 {[%clk 0:02:21]}  Qd7 {[%clk 0:02:30]} 16. Bf4 {[%clk 0:02:06]}  h6 {[%clk 0:02:03]} 17. e4 {[%clk 0:02:04]}  dxe4 {[%clk 0:01:54]} 18. dxe4 {[%clk 0:01:58]}  g5 {[%clk 0:01:50]} 19. Be3 {[%clk 0:01:54]}  Ng6 {[%clk 0:01:31]} 20. Rd1 {[%clk 0:01:22]}  Qg4 {[%clk 0:01:28]} 21. h3 {[%clk 0:01:13]}  Qe6 {[%clk 0:01:28]} 22. Qxe6 {[%clk 0:01:13]}  Rxe6 {[%clk 0:01:27]} 23. Nb5 {[%clk 0:01:11]}  Bf8 {[%clk 0:00:51]} 24. Nfd4 {[%clk 0:01:07]}  Nxd4 {[%clk 0:00:48]} 25. Nxd4 {[%clk 0:01:05]}  Ree8 {[%clk 0:00:46]} 26. f3 {[%clk 0:00:42]}  Ne5 {[%clk 0:00:44]} 27. Bf2 {[%clk 0:00:40]}  Rcd8 {[%clk 0:00:41]} 28. b5 {[%clk 0:00:35]}  h5 {[%clk 0:00:37]} 29. Nf5 {[%clk 0:00:32]}  Nd3 {[%clk 0:00:30]} 30. Be3 {[%clk 0:00:32]}  Bc5 {[%clk 0:00:29]} 31. Bxc5 {[%clk 0:00:28]}  bxc5 {[%clk 0:00:25]} 32. Bf1 {[%clk 0:00:29]}  Ne5 {[%clk 0:00:21]} 33. Nd6 {[%clk 0:00:19]}  Nxf3+ {[%clk 0:00:20]} 34. Kf2 {[%clk 0:00:19]}  Rxd6 {[%clk 0:00:17]} 35. Rxd6 {[%clk 0:00:20]}  Bxe4 {[%clk 0:00:17]} 36. Rbd1 {[%clk 0:00:20]}  Nd4 {[%clk 0:00:16]} 37. Bc4 {[%clk 0:00:16]}  Re7 {[%clk 0:00:15]} 38. Re1 {[%clk 0:00:14]}  Kg7 {[%clk 0:00:10]} 39. Bd5 {[%clk 0:00:07]}  f5 {[%clk 0:00:06]} 40. Bxe4 {[%clk 0:00:04]}  fxe4 {[%clk 0:00:07]} 41. Rd5 {[%clk 0:00:04]}  Kf6 {[%clk 0:00:05]} 42. Rxc5 {[%clk 0:00:02]}  Rb7 {[%clk 0:00:05]} 43. Rxe4 {[%clk 0:00:02]}  Nxb5 {[%clk 0:00:04]} 44. Rb4 {[%clk 0:00:02]}  Nd6 {[%clk 0:00:05]} 45. Rxb7 {[%clk 0:00:02]}  Nxb7 {[%clk 0:00:06]} 46. Rc6+ {[%clk 0:00:03]}  Kf5 {[%clk 0:00:06]} 47. Ra6 {[%clk 0:00:03]}  Nd8 {[%clk 0:00:05]} 48. Rxa7 {[%clk 0:00:04]}  Ne6 {[%clk 0:00:05]} 49. Ra5+ {[%clk 0:00:04]}  Kf6 {[%clk 0:00:05]} 50. Ke3 {[%clk 0:00:04]}  Ng7 {[%clk 0:00:04]} 51. Ke4 {[%clk 0:00:04]}  Kg6 {[%clk 0:00:01]} 52. Ra6+ {[%clk 0:00:04]}  Kf7 {[%clk 0:00:02]} 53. Ke5 {[%clk 0:00:05]}  h4 {[%clk 0:00:01]} 54. g4 {[%clk 0:00:04]}  Ke7 {[%clk 0:00:01]} 55. Ra7+ {[%clk 0:00:04]}  Kf8 {[%clk 0:00:02]} 56. Kf6 {[%clk 0:00:04]}  Ne8+ {[%clk 0:00:02]} 57. Kxg5 {[%clk 0:00:05]}  Nd6 {[%clk 0:00:03]} 58. Rd7 {[%clk 0:00:04]}  Ne4+ {[%clk 0:00:03]} 59. Kxh4 {[%clk 0:00:05]}  Nf6 {[%clk 0:00:03]} 60. Ra7 {[%clk 0:00:05]}  Kg8 {[%clk 0:00:03]} 61. Kg5 {[%clk 0:00:05]}  Nd5 {[%clk 0:00:04]} 62. h4 {[%clk 0:00:03]}  Kf8 {[%clk 0:00:04]} 63. h5 {[%clk 0:00:04]}  Kg8 {[%clk 0:00:04]} 64. h6 {[%clk 0:00:04]}  Kh8 {[%clk 0:00:03]} 65. Kh5 {[%clk 0:00:04]}  Nf4+ {[%clk 0:00:03]} 66. Kg5 {[%clk 0:00:04]}  Ne6+ {[%clk 0:00:04]} 67. Kf6 {[%clk 0:00:03]}  Nf4 {[%clk 0:00:03]} 68. g5 {[%clk 0:00:03]}  Nh5+ {[%clk 0:00:03]} 69. Kf5 {[%clk 0:00:03]}  Ng7+ {[%clk 0:00:02]} 70. Kg6 {[%clk 0:00:03]}  Kg8 {[%clk 0:00:03]} 71. Ra8+ {[%clk 0:00:03]} 1-0


[Site "https://www.chess.com"]